fUST/lending_fUST_20241109
["ID","MTS","AMOUNT","RATE_DAILY","PERIOD"]
[341702465,1731108647856,-500.0,0.00025964,2]
[341702467,1731108647866,-501.48643486,0.00025964,2]
[341702468,1731108647875,-500.0,0.00025964,2]
[341702470,1731108647884,-508.03986482,0.00025964,2]
[341702472,1731108647893,-500.0,0.00025964,2]
[341702474,1731108647903,-506.95662892,0.00025964,2]
[341702476,1731108647912,-515.61084056,0.00025964,2]
[341702477,1731108647921,-500.0,0.00025964,2]
[341702479,1731108647931,-500.0,0.00025964,2]
[341702481,1731108647940,-500.0,0.00025964,2]
[341702483,1731108647950,-500.0,0.00025964,2]
[341702485,1731108647959,-500.0,0.00025964,2]
[341702487,1731108647969,-538.94247471,0.00025964,2]
[341702488,1731108647978,-500.0,0.00025964,2]
[341702490,1731108647987,-505.59569059,0.00025964,2]
[341702492,1731108647996,-500.0,0.00025964,2]
[341702494,1731108648006,-500.0,0.00025964,2]
[341702496,1731108648015,-500.0,0.00025964,2]
[341702497,1731108648024,-500.0,0.00025964,2]
[341702499,1731108648033,-500.0,0.00025964,2]
[341702501,1731108648042,-500.0,0.00025964,2]
[341702503,1731108648051,-500.0,0.00025964,2]
[341702505,1731108648061,-500.0,0.00025964,2]
[341702507,1731108648070,-502.66728639,0.00025964,2]
[341702508,1731108648079,-500.0,0.00025964,2]
[341702510,1731108648088,-188.64445189,0.00025964,2]
[341702512,1731108648097,-504.34846256,0.00025964,2]
[341702514,1731108648106,-254.19683359,0.00025964,2]
[341702516,1731108648116,-500.0,0.00025964,2]
[341702517,1731108648125,-500.0,0.00025964,2]
[341702519,1731108648134,-512.41716238,0.00025964,2]
[341702521,1731108648143,-508.9410394,0.00025964,2]
[341702523,1731108648151,-500.0,0.00025964,2]
[341702525,1731108648160,-520.24,0.00025964,2]
[341702526,1731108648170,-172.31773014,0.00025964,2]
[341702528,1731108648179,-545.36858681,0.00025964,2]
[341702530,1731108648188,-504.74556712,0.00025964,2]
[341702532,1731108648198,-500.0,0.00025964,2]
[341702534,1731108648207,-112.61232434,0.00025964,2]
[341702536,1731108648221,-387.38767566,0.00025964,2]
[341702538,1731108648230,-506.37505722,0.00025964,2]
[341702539,1731108648239,-508.81551398,0.00025964,2]
[341702541,1731108648248,-500.0,0.00025964,2]
[341702543,1731108648257,-510.25365357,0.00025964,2]
[341702545,1731108648266,-500.0,0.00025964,2]
[341702547,1731108648275,-458.87182357,0.00025964,2]
[341702548,1731108648284,-500.0,0.00025964,2]
[341702550,1731108648293,-34.68265301,0.00025964,2]
[341702552,1731108648304,-262.30619758,0.00025964,2]
[341702554,1731108648315,-203.01114941,0.00025964,2]
[341702556,1731108648324,-257.84340062,0.00025964,2]
[341708967,1731108822826,694.44444444,0.00020843,2]
[341708970,1731108932615,166.950794,0.00013973,2]
[341708971,1731109041336,12842.831899,0.00031737,30]
[341708973,1731109134134,694.44444444,0.00020843,2]
[341708977,1731109445299,694.44444444,0.00020843,2]
[341708978,1731109472074,3000.0,0.00031738,43]
[341708979,1731109600808,166.343953,0.00013973,2]
[341708982,1731109755919,694.44444444,0.00020843,2]
[341709000,1731109832578,-694.44444444,0.00023275,2]
[341709001,1731109832589,-500.0,0.00023883,2]
[341709002,1731109832600,-300.0,0.00023883,2]
[341709003,1731109832610,-300.0,0.00023883,2]
[341709004,1731109832621,-504.42311416,0.00023884,2]
[341709005,1731109832631,-500.0,0.00023884,2]
[341709006,1731109832641,-188.98191263,0.00023884,2]
[341709008,1731109838849,-311.01808737,0.00023884,2]
[341709009,1731109838861,-500.0,0.00023884,2]
[341709010,1731109838871,-500.0,0.00023884,2]
[341709011,1731109838881,-216.58191263,0.00023884,2]
[341709012,1731109838894,-291.56279601,0.00023884,2]
[341709013,1731109838904,-502.37978132,0.00023884,2]
[341709014,1731109838915,-250.0,0.00023884,2]
[341709015,1731109838925,-500.0,0.00023884,2]
[341709016,1731109838935,-500.0,0.00023884,2]
[341709017,1731109838944,-500.0,0.00023884,2]
[341709018,1731109838955,-410.25423262,0.00023884,2]
[341709019,1731109838967,-500.0,0.00023884,2]
[341709020,1731109838977,-435.91716681,0.00023884,2]
[341709024,1731109840566,-67.88235026,0.00023884,2]
[341709025,1731109840576,-513.60961253,0.00023884,2]
[341709026,1731109840587,-558.37416983,0.00023884,2]
[341709027,1731109840596,-562.861813,0.00023884,2]
[341709028,1731109840607,-311.98931541,0.00023884,2]
[341709046,1731109843785,-201.23483089,0.00023884,2]
[341709047,1731109843796,-500.0,0.00023884,2]
[341709048,1731109843941,-500.0,0.00023884,2]
[341709049,1731109843952,-503.6900889,0.00023884,2]
[341709050,1731109843968,-502.90391531,0.00023884,2]
[341709051,1731109843983,-500.0,0.00023884,2]
[341709052,1731109843994,-590.35535768,0.00023884,2]
[341709053,1731109844005,-500.0,0.00023884,2]
[341709054,1731109844016,-500.0,0.00023884,2]
[341709055,1731109844026,-500.0,0.00023884,2]
[341709056,1731109844038,-514.48137064,0.00023884,2]
[341709057,1731109844048,-504.35815612,0.00023884,2]
[341709058,1731109844058,-500.0,0.00023884,2]
[341709059,1731109844068,-500.0,0.00023884,2]
[341709060,1731109844078,-500.0,0.00023884,2]
[341709061,1731109844088,-500.0,0.00023884,2]
[341709062,1731109844098,-500.0,0.00023884,2]
[341709063,1731109844109,-500.0,0.00023884,2]
[341709064,1731109844119,-503.39904094,0.00023884,2]
[341709065,1731109844129,-500.0,0.00023884,2]
[341709066,1731109844139,-505.53751388,0.00023884,2]
[341709067,1731109844149,-500.0,0.00023884,2]
[341709068,1731109844160,-503.87536501,0.00023884,2]
[341709069,1731109844170,-503.70084933,0.00023884,2]
[341709070,1731109844180,-500.0,0.00023884,2]
[341709071,1731109844190,-500.0,0.00023884,2]
[341709072,1731109844200,-500.0,0.00023884,2]
[341709073,1731109844210,-603.35458812,0.00023884,2]
[341709074,1731109844220,-250.56737521,0.00023884,2]
[341709075,1731109844230,-500.0,0.00023884,2]
[341709076,1731109844239,-500.0,0.00023884,2]
[341709077,1731109844250,-500.0,0.00023884,2]
[341709078,1731109844260,-500.0,0.00023986,2]
[341709079,1731109844270,-500.0,0.00023986,2]
[341709080,1731109844279,-500.0,0.00024158,2]
[341709081,1731109844289,-458.03703064,0.00024158,2]
[341709082,1731109844298,-2672.98990044,0.00024235,2]
[341709092,1731110066622,694.44444444,0.00020843,2]
[341709093,1731110377515,694.44444444,0.00020843,2]
[341709095,1731110548481,166.190302,0.00013973,2]
[341709096,1731110688240,694.44444444,0.00020843,2]
[341709103,1731110999348,694.44444444,0.00020843,2]
[341709133,1731111032647,-1330.214932,0.00021692,2]
[341709134,1731111032658,-300.0,0.00021807,2]
[341709135,1731111032668,-300.0,0.00021807,2]
[341709136,1731111032677,-15097.24917758,0.00021808,2]
[341709137,1731111032711,-2612.89511547,0.00021808,2]
[341709188,1731111262104,165.907559,0.00013973,2]
[341709198,1731111310347,694.44444444,0.00020843,2]
[341709207,1731111395693,554.399759,0.00031739,120]
[341709208,1731111621727,694.44444444,0.00020843,2]
[341709209,1731111628115,886.809954,0.00020821,2]
[341709210,1731111628452,454.546864,0.00020821,2]
[341709211,1731111717044,162.213847,0.00020821,2]
[341709212,1731111720256,13329.57392207,0.0002071,2]
[341709213,1731111720282,3533.26963423,0.0002071,2]
[341709214,1731111724779,347.499756,0.00020682,2]
[341709218,1731111932544,694.44444444,0.00020843,2]
[341709219,1731111970736,12501.6417889,0.00020683,2]
[341709220,1731111986685,743.22413578,0.00020825,2]
[341709227,1731112069849,165.473444,0.00013973,2]
[341709240,1731112123580,54711.78643268,0.00020377,2]
[341709268,1731112231927,-694.44444444,0.00020861,2]
[341709269,1731112231937,-162.213847,0.00020925,2]
[341709270,1731112231949,-1123.8737197,0.00020932,2]
[341709271,1731112231958,-886.809954,0.00021506,2]
[341709272,1731112231967,-246.703337,0.00021598,2]
[341709273,1731112231977,-513.70026372,0.00021817,2]
[341709274,1731112231986,-300.0,0.00021916,2]
[341709275,1731112231996,-300.0,0.00021916,2]
[341709276,1731112232005,-827.53181593,0.00021917,2]
[341709277,1731112232017,-500.0,0.00021917,2]
[341709278,1731112232029,-500.0,0.00021917,2]
[341709279,1731112232042,-500.0,0.00021917,2]
[341709280,1731112232051,-503.29034906,0.00021917,2]
[341709281,1731112232061,-500.0,0.00021917,2]
[341709282,1731112232071,-511.55255675,0.00021917,2]
[341709283,1731112232080,-506.34619409,0.00021917,2]
[341709284,1731112232089,-500.0,0.00021917,2]
[341709285,1731112232099,-500.0,0.00021917,2]
[341709286,1731112232109,-191.58054379,0.00021917,2]
[341709287,1731112232118,-507.27415853,0.00021917,2]
[341709288,1731112232127,-500.0,0.00021917,2]
[341709289,1731112232137,-500.0,0.00021917,2]
[341709290,1731112232146,-525.1208139,0.00021917,2]
[341709291,1731112232156,-301.89974264,0.00021917,2]
[341709292,1731112232165,-500.0,0.00021917,2]
[341709293,1731112232174,-500.0,0.00021917,2]
[341709294,1731112232183,-500.0,0.00021917,2]
[341709295,1731112232193,-500.0,0.00021917,2]
[341709296,1731112232202,-500.0,0.00021917,2]
[341709297,1731112232212,-507.63556111,0.00021917,2]
[341709298,1731112232221,-500.0,0.00021917,2]
[341709299,1731112232231,-500.0,0.00021917,2]
[341709300,1731112232241,-500.0,0.00021917,2]
[341709301,1731112232251,-500.0,0.00021917,2]
[341709302,1731112232260,-500.0,0.00021917,2]
[341709303,1731112232270,-500.0,0.00021917,2]
[341709304,1731112232279,-500.0,0.00021917,2]
[341709305,1731112232291,-500.0,0.00021917,2]
[341709306,1731112232300,-500.0,0.00021917,2]
[341709307,1731112232309,-509.48107672,0.00021917,2]
[341709308,1731112232319,-500.0,0.00021917,2]
[341709309,1731112232328,-500.0,0.00021917,2]
[341709310,1731112232341,-500.0,0.00021917,2]
[341709311,1731112232350,-500.0,0.00021917,2]
[341709312,1731112232359,-168.34652908,0.00021917,2]
[341709313,1731112232369,-500.0,0.00021917,2]
[341709314,1731112232378,-500.0,0.00021917,2]
[341709315,1731112232387,-160.53468892,0.00021917,2]
[341709316,1731112232397,-523.76164326,0.00021917,2]
[341709317,1731112232407,-231.87343067,0.00021917,2]
[341709318,1731112232421,-268.12656933,0.00021917,2]
[341709319,1731112232430,-514.27630853,0.00021917,2]
[341709320,1731112232441,-500.0,0.00021917,2]
[341709321,1731112232450,-202.44712215,0.00021917,2]
[341709322,1731112232462,-297.55287785,0.00021917,2]
[341709323,1731112232471,-20.14209946,0.00021917,2]
[341709339,1731112237950,-479.85790054,0.00021917,2]
[341709340,1731112237960,-500.0,0.00021917,2]
[341709341,1731112237970,-250.0,0.00021917,2]
[341709342,1731112237979,-500.0,0.00021917,2]
[341709343,1731112237988,-519.45323124,0.00021917,2]
[341709344,1731112237997,-510.37545968,0.00021917,2]
[341709345,1731112238007,-500.0,0.00021917,2]
[341709346,1731112238017,-500.0,0.00021917,2]
[341709347,1731112238026,-500.0,0.00021917,2]
[341709348,1731112238037,-500.0,0.00021917,2]
[341709349,1731112238046,-500.0,0.00021917,2]
[341709350,1731112238056,-500.0,0.00021917,2]
[341709351,1731112238066,-500.0,0.00021917,2]
[341709352,1731112238075,-500.0,0.00021917,2]
[341709353,1731112238084,-500.0,0.00021917,2]
[341709354,1731112238094,-500.0,0.00021917,2]
[341709355,1731112238103,-507.70238262,0.00021917,2]
[341709356,1731112238112,-500.0,0.00021917,2]
[341709357,1731112238121,-500.0,0.00021917,2]
[341709358,1731112238131,-500.0,0.00021917,2]
[341709359,1731112238140,-201.23483089,0.00021917,2]
[341709360,1731112238149,-500.0,0.00021917,2]
[341709361,1731112238159,-500.0,0.00021917,2]
[341709362,1731112238169,-500.0,0.00021917,2]
[341709363,1731112238178,-500.0,0.00021917,2]
[341709364,1731112238188,-500.0,0.00021917,2]
[341709365,1731112238198,-500.0,0.00021917,2]
[341709366,1731112238208,-500.0,0.00021917,2]
[341709367,1731112238217,-500.0,0.00021917,2]
[341709368,1731112238227,-500.0,0.00021917,2]
[341709369,1731112238242,-500.0,0.00021917,2]
[341709370,1731112238251,-500.0,0.00021917,2]
[341709371,1731112238260,-503.6900889,0.00021917,2]
[341709372,1731112238270,-427.45792355,0.00021917,2]
[341709373,1731112238279,-500.0,0.00021917,2]
[341709374,1731112238290,-502.90391531,0.00021917,2]
[341709375,1731112238299,-500.0,0.00021917,2]
[341709376,1731112238308,-500.0,0.00021917,2]
[341709377,1731112238318,-500.0,0.00021917,2]
[341709378,1731112238327,-500.0,0.00021917,2]
[341709379,1731112238338,-590.35535768,0.00021917,2]
[341709380,1731112238348,-500.0,0.00021917,2]
[341709381,1731112238357,-500.0,0.00021917,2]
[341709382,1731112238367,-500.0,0.00021917,2]
[341709383,1731112238376,-500.03,0.00021917,2]
[341709384,1731112238387,-500.0,0.00021917,2]
[341709385,1731112238396,-421.93890959,0.00021917,2]
[341709386,1731112238411,-78.06109041,0.00021917,2]
[341709387,1731112238421,-500.0,0.00021917,2]
[341709388,1731112238430,-514.48137064,0.00021917,2]
[341709389,1731112238440,-500.0,0.00021917,2]
[341709390,1731112238449,-500.0,0.00021917,2]
[341709391,1731112238459,-504.35815612,0.00021917,2]
[341709392,1731112238468,-500.0,0.00021917,2]
[341709393,1731112238478,-200.00000062,0.00021917,2]
[341709394,1731112238487,-416.85288346,0.00021917,2]
[341709395,1731112238496,-500.0,0.00021917,2]
[341709396,1731112238507,-512.19934898,0.00021917,2]
[341709397,1731112238516,-2336.0,0.00021917,2]
[341709398,1731112238525,-500.0,0.00021917,2]
[341709399,1731112238536,-500.0,0.00021917,2]
[341709400,1731112238546,-500.0,0.00021917,2]
[341709401,1731112238555,-503.39904094,0.00021917,2]
[341709402,1731112238564,-500.0,0.00021917,2]
[341709403,1731112238574,-289.34485246,0.00021917,2]
[341709404,1731112238583,-500.0,0.00021917,2]
[341709405,1731112238593,-500.0,0.00021917,2]
[341709406,1731112238603,-500.0,0.00021917,2]
[341709407,1731112238613,-500.0,0.00021917,2]
[341709408,1731112238622,-503.87536501,0.00021917,2]
[341709409,1731112238631,-503.70084933,0.00021917,2]
[341709410,1731112238641,-500.0,0.00021917,2]
[341709411,1731112238650,-500.0,0.00021917,2]
[341709412,1731112238660,-417.35145022,0.00021917,2]
[341709413,1731112238669,-500.0,0.00021917,2]
[341709414,1731112238678,-500.0,0.00021917,2]
[341709415,1731112238687,-500.0,0.00021917,2]
[341709416,1731112238697,-535.64728762,0.00021917,2]
[341709417,1731112238809,-500.0,0.00021917,2]
[341709418,1731112238819,-500.0,0.00021917,2]
[341709419,1731112238830,-528.64060709,0.00021917,2]
[341709420,1731112238839,-500.0,0.00021917,2]
[341709421,1731112238849,-500.0,0.00021917,2]
[341709422,1731112238858,-506.43376472,0.00021917,2]
[341709423,1731112238867,-500.0,0.00021917,2]
[341709424,1731112238876,-502.03908773,0.00021917,2]
[341709425,1731112238886,-500.0,0.00021917,2]
[341709426,1731112238895,-500.0,0.00021917,2]
[341709427,1731112238905,-500.0,0.00021917,2]
[341709428,1731112238914,-500.0,0.00021917,2]
[341709429,1731112238923,-500.0,0.00021917,2]
[341709430,1731112238933,-500.0,0.00021917,2]
[341709431,1731112238942,-532.06493491,0.00021917,2]
[341709432,1731112238951,-500.0,0.00021917,2]
[341709433,1731112238961,-500.0,0.00021917,2]
[341709434,1731112238970,-500.0,0.00021917,2]
[341709435,1731112238979,-500.0,0.00021917,2]
[341709436,1731112238988,-500.0,0.00021917,2]
[341709437,1731112238998,-502.9430145,0.00021917,2]
[341709438,1731112239007,-500.0,0.00021917,2]
[341709439,1731112239017,-500.0,0.00021917,2]
[341709440,1731112239026,-500.0,0.00021917,2]
[341709441,1731112239037,-512.35594706,0.00021917,2]
[341709442,1731112239046,-500.0,0.00021917,2]
[341709443,1731112239055,-500.0,0.00021917,2]
[341709444,1731112239064,-500.0,0.00021917,2]
[341709445,1731112239073,-500.0,0.00021917,2]
[341709446,1731112239083,-624.22,0.00021917,2]
[341709447,1731112239092,-500.0,0.00021917,2]
[341709448,1731112239101,-500.0,0.00021917,2]
[341709449,1731112239111,-500.0,0.00021917,2]
[341709450,1731112239120,-500.0,0.00021917,2]
[341709451,1731112239130,-500.0,0.00021917,2]
[341709452,1731112239139,-628.56391685,0.00021917,2]
[341709453,1731112239149,-500.0,0.00021917,2]
[341709454,1731112239159,-500.0,0.00021917,2]
[341709455,1731112239170,-603.35458812,0.00021917,2]
[341709456,1731112239180,-500.0,0.00021917,2]
[341709457,1731112239190,-250.56737521,0.00021917,2]
[341709458,1731112239199,-500.0,0.00021917,2]
[341709459,1731112239208,-500.0,0.00021917,2]
[341709460,1731112239218,-402.26036887,0.00021917,2]
[341709461,1731112239227,-500.0,0.00021917,2]
[341709462,1731112239236,-520.37,0.00021917,2]
[341709463,1731112239246,-500.0,0.00021917,2]
[341709464,1731112239256,-500.0,0.00021917,2]
[341709465,1731112239265,-500.0,0.00021917,2]
[341709466,1731112239275,-500.0,0.00021917,2]
[341709467,1731112239285,-500.0,0.00021917,2]
[341709468,1731112239294,-500.0,0.00021917,2]
[341709469,1731112239304,-500.0,0.00021917,2]
[341709470,1731112239313,-500.0,0.00021917,2]
[341709471,1731112239322,-500.0,0.00021917,2]
[341709472,1731112239331,-500.0,0.00021917,2]
[341709473,1731112239345,-500.0,0.00021917,2]
[341709474,1731112239354,-209.84903061,0.00021917,2]
[341709475,1731112239364,-630.46633587,0.00021917,2]
[341709476,1731112239374,-500.0,0.00021917,2]
[341709477,1731112239383,-500.0,0.00021917,2]
[341709479,1731112239392,-500.0,0.00021917,2]
[341709481,1731112239401,-500.0,0.00021917,2]
[341709483,1731112239411,-158.61510773,0.00021917,2]
[341709485,1731112239422,-500.0,0.00021917,2]
[341709487,1731112239432,-500.0,0.00021917,2]
[341709489,1731112239441,-500.0,0.00021917,2]
[341709491,1731112239450,-500.0,0.00021917,2]
[341709493,1731112239460,-500.0,0.00021917,2]
[341709495,1731112239470,-500.0,0.00021917,2]
[341709498,1731112239480,-500.0,0.00021917,2]
[341709500,1731112239489,-160.620598,0.00021917,2]
[341709502,1731112239498,-500.0,0.00021917,2]
[341709504,1731112239508,-500.0,0.00021917,2]
[341709506,1731112239517,-500.0,0.00021917,2]
[341709507,1731112239527,-500.0,0.00021917,2]
[341709509,1731112239536,-500.0,0.00021917,2]
[341709511,1731112239545,-500.0,0.00021917,2]
[341709513,1731112239554,-500.0,0.00021917,2]
[341709516,1731112239564,-500.0,0.00021917,2]
[341709517,1731112239573,-500.0,0.00021917,2]
[341709518,1731112239582,-502.57141722,0.00021917,2]
[341709519,1731112239592,-500.0,0.00021917,2]
[341709520,1731112239602,-376.58239924,0.00021917,2]
[341709521,1731112239612,-500.0,0.00021917,2]
[341709522,1731112239621,-500.0,0.00021917,2]
[341709523,1731112239630,-500.0,0.00021917,2]
[341709524,1731112239640,-500.0,0.00021917,2]
[341709525,1731112239649,-166.886877,0.00021918,2]
[341709526,1731112239658,-500.0,0.00021973,2]
[341709527,1731112239668,-500.79160373,0.00021973,2]
[341709528,1731112239677,-500.0,0.00021973,2]
[341709529,1731112239687,-500.0,0.00021973,2]
[341709530,1731112239697,-500.0,0.00021973,2]
[341709531,1731112239706,-160.53907001,0.00021973,2]
[341709532,1731112239715,-500.67301941,0.00021973,2]
[341709533,1731112239725,-500.0,0.00021973,2]
[341709535,1731112239734,-500.0,0.00021973,2]
[341709537,1731112239743,-2014.71726103,0.00022,2]
[341709539,1731112239753,-19440.42841943,0.0002201,16]
[341709541,1731112239762,-168.8145907,0.00022161,2]
[341709543,1731112239772,-500.0,0.0002219,2]
[341709545,1731112239781,-500.0,0.0002219,2]
[341709547,1731112239792,-500.0,0.0002219,2]
[341709550,1731112239802,-500.0,0.0002219,2]
[341709552,1731112239811,-500.0,0.0002219,2]
[341709554,1731112239821,-500.0,0.0002219,2]
[341709556,1731112239830,-500.0,0.0002219,2]
[341709558,1731112239840,-500.0,0.0002219,2]
[341709560,1731112239849,-500.0,0.0002219,2]
[341709562,1731112239858,-500.0,0.0002219,2]
[341709564,1731112239868,-500.0,0.0002219,2]
[341709566,1731112239877,-500.0,0.0002219,2]
[341709568,1731112239887,-500.0,0.0002219,2]
[341709570,1731112239896,-500.0,0.0002219,2]
[341709572,1731112239905,-500.0,0.0002219,2]
[341709574,1731112239915,-500.0,0.0002219,2]
[341709576,1731112239924,-500.0,0.0002219,2]
[341709578,1731112239934,-500.0,0.0002219,2]
[341709580,1731112239943,-500.0,0.0002219,2]
[341709582,1731112239952,-500.0,0.0002219,2]
[341709584,1731112239961,-500.0,0.0002219,2]
[341709586,1731112239970,-500.0,0.0002219,2]
[341709588,1731112239979,-500.0,0.0002219,2]
[341709590,1731112239988,-500.0,0.0002219,2]
[341709592,1731112239999,-500.0,0.0002219,2]
[341709594,1731112240008,-500.0,0.0002219,2]
[341709596,1731112240018,-500.0,0.0002219,2]
[341709598,1731112240027,-500.0,0.0002219,2]
[341709600,1731112240036,-500.0,0.0002219,2]
[341709602,1731112240046,-500.0,0.0002219,2]
[341709604,1731112240055,-452.32450659,0.0002219,2]
[341709606,1731112240064,-630.9997979,0.0002219,2]
[341709608,1731112240073,-500.0,0.0002219,2]
[341709610,1731112240082,-500.0,0.0002219,2]
[341709612,1731112240093,-259.85600159,0.0002219,2]
[341709614,1731112240102,-500.0,0.0002219,2]
[341709616,1731112240111,-352.99400042,0.0002219,2]
[341709618,1731112240121,-886.809954,0.00022191,2]
[341709620,1731112240130,-500.0,0.00022191,2]
[341709622,1731112240140,-532.0,0.00022191,2]
[341709624,1731112240149,-500.0,0.00022191,2]
[341709626,1731112240159,-544.98263759,0.00022191,2]
[341709628,1731112240168,-500.0,0.00022191,2]
[341709630,1731112240177,-500.0,0.00022191,2]
[341709632,1731112240186,-500.0,0.00022191,2]
[341709633,1731112240195,-500.0,0.00022191,2]
[341709634,1731112240204,-500.0,0.00022191,2]
[341709635,1731112240214,-500.0,0.00022191,2]
[341709636,1731112240223,-500.0,0.00022191,2]
[341709637,1731112240232,-500.0,0.00022191,2]
[341709638,1731112240241,-209.56943152,0.00022191,2]
[341709639,1731112240251,-500.0,0.00022191,2]
[341709640,1731112240260,-500.0,0.00022191,2]
[341709641,1731112240269,-500.0,0.00022191,2]
[341709642,1731112240278,-500.0,0.00022191,2]
[341709643,1731112240287,-500.0,0.00022191,2]
[341709644,1731112240296,-500.0,0.00022191,2]
[341709645,1731112240304,-500.0,0.00022191,2]
[341709646,1731112240314,-500.0,0.00022191,2]
[341709647,1731112240323,-500.0,0.00022191,2]
[341709648,1731112240333,-500.0,0.00022191,2]
[341709649,1731112240345,-500.0,0.00022191,2]
[341709650,1731112240354,-500.0,0.00022191,2]
[341709651,1731112240363,-500.0,0.00022191,2]
[341709652,1731112240373,-500.0,0.00022191,2]
[341709653,1731112240382,-500.0,0.00022191,2]
[341709654,1731112240392,-500.0,0.00022191,2]
[341709655,1731112240400,-279.78596617,0.00022191,2]
[341709656,1731112240412,-500.0,0.00022191,2]
[341709657,1731112240421,-500.0,0.00022191,2]
[341709658,1731112240430,-500.0,0.00022191,2]
[341709659,1731112240440,-500.0,0.00022191,2]
[341709660,1731112240449,-500.0,0.00022191,2]
[341709661,1731112240459,-500.0,0.00022191,2]
[341709662,1731112240468,-500.0,0.00022191,2]
[341709663,1731112240477,-635.31064796,0.00022191,2]
[341709664,1731112240486,-500.0,0.00022191,2]
[341709665,1731112240495,-187.30912772,0.00022191,2]
[341709666,1731112240504,-508.73711328,0.00022191,2]
[341709667,1731112240513,-500.0,0.00022191,2]
[341709668,1731112240522,-500.0,0.00022191,2]
[341709669,1731112240531,-500.0,0.00022191,2]
[341709670,1731112240542,-500.0,0.00022191,2]
[341709671,1731112240551,-534.15346865,0.00022191,2]
[341709672,1731112240560,-637.22025614,0.00022191,2]
[341709673,1731112240569,-500.0,0.00022191,2]
[341709674,1731112240578,-500.0,0.00022191,2]
[341709675,1731112240587,-500.0,0.00022191,2]
[341709676,1731112240596,-500.0,0.00022191,2]
[341709677,1731112240606,-624.22,0.00022191,2]
[341709678,1731112240615,-500.0,0.00022191,2]
[341709679,1731112240624,-184.92980784,0.00022191,2]
[341709680,1731112240633,-500.0,0.00022191,2]
[341709681,1731112240643,-500.0,0.00022191,2]
[341709682,1731112240652,-500.0,0.00022191,2]
[341709683,1731112240660,-520.37,0.00022191,2]
[341709684,1731112240670,-177.95053109,0.00022191,2]
[341709685,1731112240681,-500.0,0.00022191,2]
[341709686,1731112240692,-500.0,0.00022191,2]
[341709687,1731112240701,-500.0,0.00022191,2]
[341709688,1731112240711,-500.0,0.00022191,2]
[341709689,1731112240722,-500.0,0.00022191,2]
[341709690,1731112240731,-523.1,0.00022191,2]
[341709691,1731112240741,-205.6,0.00022191,2]
[341709692,1731112240750,-500.0,0.00022191,2]
[341709693,1731112240759,-500.0,0.00022191,2]
[341709694,1731112240769,-500.0,0.00022191,2]
[341709695,1731112240778,-295.60550543,0.00022191,2]
[341709696,1731112240788,-500.0,0.00022191,2]
[341709697,1731112240797,-458.03703064,0.00022191,2]
[341709698,1731112240806,-500.0,0.00022191,2]
[341709699,1731112240815,-500.0,0.00022191,2]
[341709700,1731112240824,-500.0,0.00022465,2]
[341709701,1731112240833,-572.14785551,0.00022465,2]
[341709702,1731112240843,-500.0,0.00022465,2]
[341709703,1731112240852,-500.0,0.00022465,2]
[341709704,1731112240861,-500.0,0.00022465,2]
[341709705,1731112240870,-500.0,0.00022465,2]
[341709706,1731112240879,-500.0,0.00022465,2]